lending/lending_fUSD_20250114
["ID","MTS","AMOUNT","RATE_DAILY","PERIOD"]
[348863586,1736827836388,-503.74751787,9.995e-05,2]
[348863587,1736827836400,-500.0,9.995e-05,2]
[348863588,1736827836409,-500.0,9.995e-05,2]
[348863589,1736827836419,-2051.75,9.995e-05,2]
[348863590,1736827836429,-1447.26,9.995e-05,2]
[348863591,1736827836438,-485.69111195,9.995e-05,2]
[348863592,1736827836449,-500.0,9.995e-05,2]
[348863593,1736827836459,-1665.64,9.995e-05,2]
[348863594,1736827836470,-604.27,9.995e-05,2]
[348863595,1736827836479,-801.98,9.995e-05,2]
[348863596,1736827836490,-500.0,9.995e-05,2]
[348863597,1736827836499,-500.0,9.995e-05,2]
[348863598,1736827836509,-2866.66,9.995e-05,2]
[348863599,1736827836519,-500.0,9.995e-05,2]
[348863600,1736827836529,-505.35890808,9.995e-05,2]
[348863601,1736827836543,-505.60092694,9.995e-05,2]
[348863602,1736827836553,-500.0,9.995e-05,2]
[348863603,1736827836562,-502.52999952,9.995e-05,2]
[348863604,1736827836572,-500.0,9.995e-05,2]
[348863605,1736827836582,-8510.01,9.995e-05,2]
[348863606,1736827836593,-500.0,9.995e-05,2]
[348863607,1736827836602,-310.6,9.995e-05,2]
[348863608,1736827836613,-500.0,9.995e-05,2]
[348863609,1736827836623,-500.0,9.995e-05,2]
[348863610,1736827836633,-500.0,9.995e-05,2]
[348863611,1736827836642,-500.0,9.995e-05,2]
[348863612,1736827836652,-500.0,9.995e-05,2]
[348863613,1736827836662,-739.5,9.995e-05,2]
[348863614,1736827836672,-500.0,9.995e-05,2]
[348863615,1736827836682,-3971.48,9.995e-05,2]
[348863616,1736827836691,-504.04627251,9.995e-05,2]
[348863617,1736827836701,-500.0,9.995e-05,2]
[348863618,1736827836711,-500.0,9.995e-05,2]
[348863619,1736827836722,-500.0,9.995e-05,2]
[348863620,1736827836731,-500.0,9.995e-05,2]
[348863621,1736827836741,-500.0,9.995e-05,2]
[348863622,1736827836751,-500.0,9.995e-05,2]
[348863623,1736827836760,-504.77810106,9.995e-05,2]
[348863624,1736827836770,-500.0,9.995e-05,2]
[348863625,1736827836779,-937.65,9.995e-05,2]
[348863626,1736827836789,-500.0,9.995e-05,2]
[348863627,1736827836799,-500.0,9.995e-05,2]
[348863628,1736827836809,-500.0,9.995e-05,2]
[348863629,1736827836818,-500.0,9.995e-05,2]
[348863630,1736827836827,-500.0,9.995e-05,2]
[348863631,1736827836837,-500.0,9.995e-05,2]
[348863632,1736827836846,-500.0,9.995e-05,2]
[348863633,1736827836856,-389.43578497,9.995e-05,2]
[348863634,1736827836865,-1326.85,9.995e-05,2]
[348863635,1736827836875,-500.0,9.995e-05,2]
[348863636,1736827836884,-500.0,9.995e-05,2]
[348863637,1736827836894,-500.0,9.995e-05,2]
[348863638,1736827836903,-500.0,9.995e-05,2]
[348863639,1736827836913,-4109.56,9.995e-05,2]
[348863640,1736827836923,-500.0,9.995e-05,2]
[348863641,1736827836932,-1005.36,9.995e-05,2]
[348863642,1736827836940,-503.03805005,9.995e-05,2]
[348863643,1736827836950,-500.0,9.995e-05,2]
[348863644,1736827836959,-500.0,9.995e-05,2]
[348863645,1736827836968,-500.0,9.995e-05,2]
[348863646,1736827836978,-599.77346674,9.995e-05,2]
[348863647,1736827836987,-500.0,9.995e-05,2]
[348863648,1736827836996,-192.16106163,9.995e-05,2]
[348863649,1736827837006,-500.0,9.995e-05,2]
[348863650,1736827837015,-861.74,9.995e-05,2]
[348863651,1736827837025,-500.0,9.995e-05,2]
[348863652,1736827837036,-2746.65,9.995e-05,2]
[348863653,1736827837046,-500.0,9.995e-05,2]
[348863654,1736827837056,-500.0,9.995e-05,2]
[348863655,1736827837066,-168.83556566,9.995e-05,2]
[348863656,1736827837076,-500.0,9.995e-05,2]
[348863657,1736827837088,-500.0,9.995e-05,2]
[348863658,1736827837098,-1053.66,9.995e-05,2]
[348863659,1736827837108,-500.0,9.995e-05,2]
[348863660,1736827837118,-500.0,9.995e-05,2]
[348863661,1736827837127,-500.0,9.995e-05,2]
[348863662,1736827837137,-500.0,9.995e-05,2]
[348863663,1736827837147,-500.0,9.995e-05,2]
[348863664,1736827837156,-500.0,9.995e-05,2]
[348863665,1736827837166,-500.0,9.995e-05,2]
[348863666,1736827837176,-502.94781024,9.995e-05,2]
[348863667,1736827837185,-503.01933187,9.995e-05,2]
[348863668,1736827837195,-500.0,9.995e-05,2]
[348863669,1736827837204,-555.45,9.995e-05,2]
[348863670,1736827837213,-500.0,9.995e-05,2]
[348863671,1736827837223,-4670.18,9.995e-05,2]
[348863672,1736827837233,-532.01589012,9.995e-05,2]
[348863673,1736827837242,-500.0,9.995e-05,2]
[348863674,1736827837252,-2262.63,9.995e-05,2]
[348863675,1736827837262,-500.0,9.995e-05,2]
[348863676,1736827837272,-500.0,9.995e-05,2]
[348863677,1736827837282,-500.0,9.995e-05,2]
[348863678,1736827837292,-500.0,9.995e-05,2]
[348863679,1736827837302,-500.0,9.995e-05,2]
[348863680,1736827837312,-500.0,9.995e-05,2]
[348863681,1736827837321,-500.0,9.995e-05,2]
[348863682,1736827837330,-838.77,9.995e-05,2]
[348863683,1736827837339,-500.0,9.995e-05,2]
[348863684,1736827837349,-1395.76,9.995e-05,2]
[348863685,1736827837359,-505.31598777,9.995e-05,2]
[348863686,1736827837369,-599.29,9.995e-05,2]
[348863687,1736827837379,-500.0,9.995e-05,2]
[348863688,1736827837388,-500.0,9.995e-05,2]
[348863689,1736827837397,-2119.56,9.995e-05,2]
[348863690,1736827837407,-500.0,9.995e-05,2]
[348863691,1736827837416,-500.0,9.995e-05,2]
[348863692,1736827837426,-520.41,9.995e-05,2]
[348863693,1736827837435,-500.0,9.995e-05,2]
[348863694,1736827837445,-500.0,9.995e-05,2]
[348863695,1736827837455,-500.0,9.995e-05,2]
[348863696,1736827837465,-580.31,9.995e-05,2]
[348863697,1736827837474,-502.41401968,9.995e-05,2]
[348863698,1736827837484,-500.0,9.995e-05,2]
[348863699,1736827837493,-500.0,9.995e-05,2]
[348863700,1736827837502,-502.55561316,9.995e-05,2]
[348863701,1736827837511,-4684.64,9.995e-05,2]
[348863702,1736827837521,-801.17,9.995e-05,2]
[348863703,1736827837531,-438.89853356,9.995e-05,2]
[348863704,1736827837545,-500.0,9.995e-05,2]
[348863705,1736827837555,-500.0,9.995e-05,2]
[348863706,1736827837565,-500.0,9.995e-05,2]
[348863707,1736827837575,-2209.06,9.995e-05,2]
[348863708,1736827837584,-500.0,9.995e-05,2]
[348863709,1736827837594,-502.89083256,9.995e-05,2]
[348863710,1736827837604,-500.0,9.995e-05,2]
[348863711,1736827837613,-500.0,9.995e-05,2]
[348863712,1736827837623,-500.0,9.995e-05,2]
[348863713,1736827837633,-500.0,9.995e-05,2]
[348863714,1736827837643,-500.0,9.995e-05,2]
[348863715,1736827837652,-500.0,9.995e-05,2]
[348863716,1736827837662,-500.0,9.995e-05,2]
[348863717,1736827837671,-500.0,9.995e-05,2]
[348863718,1736827837681,-500.0,9.995e-05,2]
[348863719,1736827837691,-3779.79,9.995e-05,2]
[348863720,1736827837700,-500.0,9.995e-05,2]
[348863721,1736827837710,-500.0,9.995e-05,2]
[348863722,1736827837720,-500.0,9.995e-05,2]
[348863723,1736827837729,-500.0,9.995e-05,2]
[348863724,1736827837739,-507.30462137,9.995e-05,2]
[348863725,1736827837748,-500.0,9.995e-05,2]
[348863726,1736827837757,-500.0,9.996e-05,2]
[348863727,1736827837767,-500.0,9.996e-05,2]
[348863728,1736827837776,-500.0,9.996e-05,2]
[348863729,1736827837785,-500.0,9.996e-05,2]
[348863730,1736827837795,-500.0,9.996e-05,2]
[348863731,1736827837804,-502.52365417,9.996e-05,2]
[348863732,1736827837814,-500.0,9.996e-05,2]
[348863733,1736827837824,-500.0,9.996e-05,2]
[348863734,1736827837833,-500.0,9.996e-05,2]
[348863735,1736827837842,-500.0,9.996e-05,2]
[348863736,1736827837851,-500.0,9.996e-05,2]
[348863737,1736827837861,-500.0,9.996e-05,2]
[348863738,1736827837870,-500.0,9.996e-05,2]
[348863739,1736827837879,-500.0,9.996e-05,2]
[348863740,1736827837888,-500.0,9.996e-05,2]
[348863741,1736827837897,-500.0,9.996e-05,2]
[348863742,1736827837907,-500.0,9.996e-05,2]
[348863743,1736827837916,-500.0,9.996e-05,2]
[348863744,1736827837926,-500.0,9.996e-05,2]
[348863745,1736827837935,-500.0,9.996e-05,2]
[348863746,1736827837945,-500.0,9.996e-05,2]
[348863747,1736827837954,-500.0,9.996e-05,2]
[348863748,1736827837963,-500.0,9.996e-05,2]
[348863749,1736827837974,-502.57468051,9.996e-05,2]
[348863750,1736827837984,-500.0,9.996e-05,2]
[348863751,1736827837993,-500.0,9.996e-05,2]
[348863752,1736827838004,-500.0,9.996e-05,2]
[348863753,1736827838014,-500.0,9.996e-05,2]
[348863754,1736827838023,-500.0,9.996e-05,2]
[348863755,1736827838032,-506.39442063,9.996e-05,2]
[348863756,1736827838041,-500.0,9.996e-05,2]
[348863757,1736827838051,-503.2364782,9.996e-05,2]
[348863758,1736827838060,-500.0,9.996e-05,2]
[348863759,1736827838070,-500.0,9.996e-05,2]
[348863760,1736827838080,-500.0,9.996e-05,2]
[348863761,1736827838091,-500.0,9.996e-05,2]
[348863762,1736827838101,-500.0,9.996e-05,2]
[348863763,1736827838110,-401.46610498,9.996e-05,2]
[348863764,1736827838120,-504.17384441,9.996e-05,2]
[348863766,1736827838129,-500.0,9.996e-05,2]
[348863767,1736827838139,-502.24010553,9.996e-05,2]
[348863768,1736827838148,-500.0,9.996e-05,2]
[348863769,1736827838157,-502.41120535,9.996e-05,2]
[348863771,1736827838167,-500.0,9.996e-05,2]
[348863773,1736827838176,-500.0,9.996e-05,2]
[348863774,1736827838185,-500.0,9.996e-05,2]
[348863775,1736827838194,-500.0,9.996e-05,2]
[348863776,1736827838203,-500.0,9.996e-05,2]
[348863777,1736827838213,-500.0,9.996e-05,2]
[348863778,1736827838224,-505.62922625,9.996e-05,2]
[348863779,1736827838234,-500.0,9.996e-05,2]
[348863780,1736827838245,-500.0,9.996e-05,2]
[348863781,1736827838255,-504.48130917,9.996e-05,2]
[348863782,1736827838264,-500.0,9.996e-05,2]
[348863783,1736827838274,-500.0,9.996e-05,2]
[348863784,1736827838284,-503.70151103,9.996e-05,2]
[348863785,1736827838294,-500.0,9.996e-05,2]
[348863787,1736827838303,-500.0,9.996e-05,2]
[348863789,1736827838313,-500.0,9.996e-05,2]
[348863790,1736827838322,-500.0,9.996e-05,2]
[348863791,1736827838332,-500.0,9.996e-05,2]
[348863792,1736827838341,-500.0,9.996e-05,2]
[348863793,1736827838351,-502.4004289,9.996e-05,2]
[348863794,1736827838359,-500.0,9.996e-05,2]
[348863795,1736827838369,-500.0,9.996e-05,2]
[348863796,1736827838379,-500.0,9.996e-05,2]
[348863797,1736827838390,-500.0,9.996e-05,2]
[348863798,1736827838399,-504.05503526,9.996e-05,2]
[348863799,1736827838411,-500.0,9.996e-05,2]
[348863800,1736827838421,-500.0,9.996e-05,2]
[348863801,1736827838430,-500.0,9.996e-05,2]
[348863802,1736827838441,-500.0,9.996e-05,2]
[348863803,1736827838450,-510.3459911,9.996e-05,2]
[348863804,1736827838460,-503.94740425,9.996e-05,2]
[348863805,1736827838470,-500.0,9.996e-05,2]
[348863806,1736827838479,-500.0,9.996e-05,2]
[348863807,1736827838489,-502.84954173,9.996e-05,2]
[348863808,1736827838499,-505.10770891,9.996e-05,2]
[348863809,1736827838509,-503.6048014,9.996e-05,2]
[348863810,1736827838519,-500.0,9.996e-05,2]
[348863811,1736827838529,-500.0,9.996e-05,2]
[348863812,1736827838542,-500.0,9.996e-05,2]
[348863813,1736827838552,-500.0,9.996e-05,2]
[348863814,1736827838561,-500.0,9.996e-05,2]
[348863815,1736827838571,-167.64832442,9.996e-05,2]
[348863816,1736827838582,-508.83193177,9.996e-05,2]
[348863817,1736827838592,-500.0,9.996e-05,2]
[348863818,1736827838602,-500.0,9.996e-05,2]
[348863819,1736827838615,-500.0,9.996e-05,2]
[348863820,1736827838626,-500.0,9.996e-05,2]
[348863821,1736827838635,-500.0,9.996e-05,2]
[348863822,1736827838645,-500.0,9.996e-05,2]
[348863823,1736827838654,-500.0,9.996e-05,2]
[348863824,1736827838664,-500.0,9.996e-05,2]
[348863825,1736827838673,-500.0,9.996e-05,2]
[348863826,1736827838682,-500.0,9.996e-05,2]
[348863827,1736827838691,-506.43029608,9.996e-05,2]
[348863828,1736827838701,-637.21859325,9.996e-05,2]
[348863829,1736827838711,-500.0,9.996e-05,2]
[348863830,1736827838721,-500.0,9.996e-05,2]
[348863831,1736827838730,-501.14902138,9.996e-05,2]
[348863832,1736827838739,-500.0,9.996e-05,2]
[348863833,1736827838749,-500.0,9.996e-05,2]
[348863834,1736827838759,-500.0,9.996e-05,2]
[348863835,1736827838768,-500.0,9.996e-05,2]
[348863836,1736827838777,-500.0,9.996e-05,2]
[348863837,1736827838788,-534.91840991,9.996e-05,2]
[348863838,1736827838797,-500.0,9.996e-05,2]
[348863839,1736827838807,-504.08844934,9.996e-05,2]
[348863840,1736827838816,-507.50854202,9.996e-05,2]
[348863841,1736827838826,-500.0,9.996e-05,2]
[348863842,1736827838835,-500.0,9.996e-05,2]
[348863843,1736827838845,-500.0,9.996e-05,2]
[348863845,1736827838853,-341.91874837,9.996e-05,2]
[348863846,1736827838863,-500.0,9.996e-05,2]
[348863848,1736827838872,-500.0,9.996e-05,2]
[348863850,1736827838882,-500.0,9.996e-05,2]
[348863851,1736827838891,-405.77965165,9.996e-05,2]
[348863853,1736827838901,-505.8821177,9.996e-05,2]
[348863855,1736827838911,-500.0,9.996e-05,2]
[348863857,1736827838920,-500.0,9.996e-05,2]
[348863858,1736827838930,-500.0,9.996e-05,2]
[348863860,1736827838939,-505.51222933,9.996e-05,2]
[348863862,1736827838949,-500.0,9.996e-05,2]
[348863864,1736827838959,-500.0,9.996e-05,2]
[348863866,1736827838969,-500.0,9.996e-05,2]
[348863868,1736827838979,-500.0,9.996e-05,2]
[348863871,1736827838988,-500.0,9.996e-05,2]
[348863874,1736827838997,-500.0,9.996e-05,2]
[348863876,1736827839007,-500.0,9.996e-05,2]
[348863878,1736827839015,-500.0,9.996e-05,2]
[348863880,1736827839024,-500.0,9.996e-05,2]
[348863882,1736827839034,-383.36006107,9.996e-05,2]
[348863884,1736827839043,-506.3772778,9.996e-05,2]
[348863886,1736827839053,-500.0,9.996e-05,2]
[348863888,1736827839063,-500.0,9.996e-05,2]
[348863890,1736827839073,-599.54159535,9.996e-05,2]
[348863892,1736827839083,-204.96914703,9.996e-05,2]
[348863894,1736827839092,-500.0,9.996e-05,2]
[348863896,1736827839101,-500.0,9.996e-05,2]
[348863898,1736827839110,-500.0,9.996e-05,2]
[348863900,1736827839119,-504.21143988,9.996e-05,2]
[348863902,1736827839129,-3471.46,9.996e-05,2]
[348863904,1736827839138,-853.88,9.996e-05,2]
[348863906,1736827839147,-1194.98,9.996e-05,2]
[348863908,1736827839157,-3398.48,9.996e-05,2]
[348863910,1736827839167,-986.7,9.996e-05,2]
[348863912,1736827839176,-768.49,9.996e-05,2]
[348863914,1736827839185,-500.0,9.996e-05,2]
[348863916,1736827839194,-1140.59,9.996e-05,2]
[348863917,1736827839204,-1646.8,9.996e-05,2]
[348863920,1736827839213,-1668.08,9.996e-05,2]
[348863921,1736827839223,-1007.49,9.997e-05,2]
[348863924,1736827839233,-500.0,9.997e-05,2]
[348863926,1736827839242,-917.76,9.997e-05,2]
[348863928,1736827839252,-500.0,9.997e-05,2]
[348863930,1736827839261,-935.41,9.997e-05,2]
[348863932,1736827839270,-500.0,9.997e-05,2]
[348863934,1736827839280,-500.0,9.997e-05,2]
[348863935,1736827839289,-500.0,9.997e-05,2]
[348863937,1736827839299,-528.75,9.997e-05,2]
[348863939,1736827839308,-648.14177578,9.997e-05,2]
[348863941,1736827839318,-500.0,9.997e-05,2]
[348863943,1736827839327,-500.0,9.997e-05,2]
[348863945,1736827839337,-1992.55,9.997e-05,2]
[348863947,1736827839346,-1682.22,9.997e-05,2]
[348863949,1736827839355,-1959.7,9.997e-05,2]
[348863951,1736827839365,-3616.36,9.997e-05,2]
[348863953,1736827839374,-4341.89,9.997e-05,2]
[348863955,1736827839384,-1063.44836008,9.998e-05,3]
[348863957,1736827839393,-2394.998,9.998e-05,2]
[348863959,1736827839402,-217.028,9.998e-05,2]
[348863960,1736827839411,-250000.0,9.999e-05,2]
[348863961,1736827839421,-1652.02,9.999e-05,2]
[348863962,1736827839430,-1791.37,9.999e-05,2]
[348863963,1736827839439,-500.0,9.999e-05,2]
[348863964,1736827839449,-992.88,9.999e-05,2]
[348863965,1736827839458,-2135.25,9.999e-05,2]
[348863966,1736827839468,-980.05,9.999e-05,2]
[348863967,1736827839478,-876.14,9.999e-05,2]
[348863968,1736827839487,-892.19,9.999e-05,2]
[348863969,1736827839496,-500.0,9.999e-05,2]
[348863970,1736827839505,-1022.37,9.999e-05,2]
[348863971,1736827839515,-1573.6,9.999e-05,2]
[348863972,1736827839524,-500.0,9.999e-05,2]
[348863973,1736827839535,-1312.03,9.999e-05,2]
[348863974,1736827839547,-1930.47,9.999e-05,2]
[348863975,1736827839557,-1593.35,9.999e-05,2]
[348863976,1736827839566,-2102.64,9.999e-05,2]
[348863977,1736827839576,-3848.98,9.999e-05,2]
[348863978,1736827839586,-9575.56,9.999e-05,2]
[348863979,1736827839596,-1891.59,9.999e-05,2]
[348863980,1736827839606,-1748.51,9.999e-05,2]
[348863981,1736827839615,-795.45,9.999e-05,2]
[348863982,1736827839625,-2462.26,9.999e-05,2]
[348863983,1736827839634,-513.08159303,9.999e-05,2]
[348863984,1736827839643,-1000.0,9.999e-05,2]
[348863985,1736827839653,-500.0,9.999e-05,2]
[348863986,1736827839662,-1000.75,9.999e-05,2]
[348863987,1736827839672,-716.44,9.999e-05,2]
[348863988,1736827839683,-2294.92,9.999e-05,2]
[348863989,1736827839692,-500.0,9.999e-05,2]
[348863990,1736827839702,-2011.24,9.999e-05,2]
[348863991,1736827839713,-500.99909468,9.999e-05,2]
[348863992,1736827839722,-1360.43,9.999e-05,2]
[348863993,1736827839731,-500.0,9.999e-05,2]
[348863994,1736827839744,-500.0,9.999e-05,2]
[348863995,1736827839756,-198.45645604,9.999e-05,2]
[348863996,1736827839766,-500.0,9.999e-05,2]
[348863997,1736827839775,-256.63043357,9.999e-05,2]
[348863998,1736827839785,-500.0,9.999e-05,2]
[348863999,1736827839795,-500.0,9.999e-05,2]
[348864000,1736827839805,-500.0,9.999e-05,2]
[348864001,1736827839815,-441.11186216,9.999e-05,2]
[348864002,1736827839825,-164.56214103,9.999e-05,2]
[348864003,1736827839834,-500.0,9.999e-05,2]
[348864004,1736827839843,-527.20848784,9.999e-05,2]
[348864005,1736827839852,-606.0,0.0001,2]
[348864006,1736827839862,-80808.94888996,0.0001,2]
[348864007,1736827840408,-321056.57008561,0.0001,2]
[348864008,1736827841513,-765.99,9.995e-05,2]
[348864009,1736827841525,-1248.67639253,0.0001,2]
[348864010,1736827841539,-238272.50579697,0.0001,2]
[348864011,1736827841555,-10311.42193744,0.0001,2]
[348864012,1736827841568,-408.65030628,0.0001,2]
[348864013,1736827841582,-467.52,0.0001,2]
[348864014,1736827841596,-9551.96517079,0.0001,2]
[348864015,1736827841611,-5462.24845647,0.0001,2]
[348864016,1736827841626,-8940.77294004,0.0001,2]
[348864017,1736827841640,-1572.82199258,0.0001,2]
[348864018,1736827841654,-1262.42531944,0.0001,2]
[348864019,1736827841723,-279275.39803862,0.0001,2]
[348864020,1736827841736,-413807.47600029,0.0001,2]
[348864021,1736827841747,-15647.88363083,0.0001,2]
[348864022,1736827841762,-29261.54321728,0.0001,2]
[348864023,1736827841773,-145330.03591858,0.0001,2]
[348864024,1736827841787,-210273.21832227,0.0001,2]
[348864025,1736827841801,-8559.81171831,0.0001,2]
[348864026,1736827841815,-42600.846288,0.0001,2]
[348864027,1736827841829,-43119.97041,0.0001,2]
[348864028,1736827841843,-11417.733465,0.0001,2]
[348864029,1736827841861,-429.8761991,0.0001,2]
[348864030,1736827842094,-642.97607776,0.0001,2]
[348864031,1736827842108,-1966.80121778,0.0001,2]
[348864032,1736827842121,-5400.36688747,0.0001,2]
[348864033,1736827842135,-2077790.36786651,0.0001,2]
[348864034,1736827842146,-597559.3520437,0.0001,2]
[348864035,1736827842158,-200.0,0.0001,2]
[348864036,1736827842170,-200.0,0.0001,3]
[348864037,1736827842181,-200.0,0.0001,2]
[348864038,1736827842192,-200.0,0.0001,3]
[348864039,1736827842203,-190.0,0.0001,2]
[348864040,1736827842214,-190.0,0.0001,3]
[348864041,1736827842225,-190.0,0.0001,2]
[348864042,1736827842238,-267.08,0.0001,2]
[348864043,1736827842249,-116246.36460881,0.0001,2]
[348864044,1736827842265,-28134.18947435,0.0001,2]
[348864045,1736827842279,-1592.36763959,0.0001,2]
[348864046,1736827842301,-1804.92310784,0.0001,2]
[348864047,1736827842315,-318.26827639,0.0001,2]
[348864048,1736827842329,-1963.29169128,0.0001,2]
[348864049,1736827842343,-1363.62448,0.0001,2]
[348864050,1736827842365,-1000.0,0.0001,2]
[348864051,1736827842379,-838.14651468,0.0001,2]
[348864052,1736827842393,-889.10677559,0.0001,2]
[348864071,1736827843593,-1104.0,9.822e-05,2]
[348864072,1736827843604,-26083.52882515,0.0001,2]
[348864073,1736827843645,-9311.04221422,0.0001,2]
[348864074,1736827843699,-940.51939151,0.0001,2]
[348864091,1736827846593,-432.00902886,9.994e-05,2]
[348864092,1736827846687,-925.40097114,9.994e-05,2]
[348864093,1736827846696,-350.19843816,9.994e-05,2]
[348864094,1736827846708,-149.80156184,9.994e-05,2]
[348864095,1736827846717,-101.29917547,9.995e-05,2]
[348864096,1736827846743,-398.70082453,9.995e-05,2]
[348864097,1736827846752,-500.0,9.995e-05,2]
[348864098,1736827846761,-500.0,9.995e-05,2]
[348864099,1736827846770,-500.0,9.995e-05,2]
[348864100,1736827846780,-151.84691394,0.0001,2]
[348864102,1736828046126,151.011413,0.00023,120]
[348864104,1736828677595,1000.0,0.0002,30]
[348864106,1736828808513,882.98,8.219e-05,2]
[348864116,1736828875052,2572.07,0.00023,120]
[348864118,1736828950050,1157.7060451,0.00023,120]
[348864140,1736829031649,-250.0,8.779e-05,2]
[348864141,1736829031659,-179.21021427,8.811e-05,2]
[348864142,1736829031670,-139.95978573,8.811e-05,2]
[348864143,1736829031680,-250.0,8.811e-05,2]
[348864144,1736829031690,-1000.0,8.84e-05,2]
[348864145,1736829031699,-2000.0,8.96e-05,2]
[348864146,1736829031708,-23900.0,8.993e-05,2]
[348864147,1736829031718,-564.57,8.997e-05,2]
[348864148,1736829031727,-168.14,9.243e-05,2]
[348864149,1736829031737,-1543.2,9.341e-05,2]
[348864150,1736829031746,-200.0,9.4e-05,3]
[348864151,1736829031755,-157.484,9.5e-05,2]
[348864152,1736829031765,-500.0,9.5e-05,3]
[348864153,1736829031774,-1184.05295172,9.5e-05,2]
[348864154,1736829031783,-150.0,9.561e-05,2]
[348864155,1736829031792,-437.23,9.562e-05,2]
[348864156,1736829031801,-150.0,9.562e-05,2]
[348864157,1736829031811,-150.0,9.562e-05,2]
[348864158,1736829031820,-300.0,9.562e-05,2]
[348864159,1736829031829,-150.0,9.562e-05,2]
[348864160,1736829031839,-150.0,9.562e-05,2]
[348864161,1736829031848,-437.23,9.562e-05,2]
[348864162,1736829031857,-150.0,9.562e-05,2]
[348864163,1736829031866,-980.19,9.562e-05,2]
[348864164,1736829031876,-150.0,9.562e-05,2]
[348864165,1736829031885,-437.23,9.562e-05,2]
[348864166,1736829031896,-980.19,9.562e-05,2]
[348864167,1736829031905,-150.0,9.562e-05,2]
[348864168,1736829031915,-150.0,9.562e-05,2]
[348864169,1736829031924,-150.0,9.562e-05,2]
[348864170,1736829031933,-150.89,9.562e-05,2]
[348864171,1736829031942,-991.12,9.562e-05,2]
[348864172,1736829031951,-440.47,9.562e-05,2]
[348864173,1736829031960,-151.06,9.562e-05,2]
[348864174,1736829031969,-150.0,9.578e-05,2]
[348864175,1736829031979,-307.23,9.578e-05,2]
[348864176,1736829031988,-304.38,9.578e-05,2]
[348864177,1736829031997,-150.35,9.578e-05,2]
[348864178,1736829032006,-980.31,9.578e-05,2]
[348864179,1736829032016,-150.0,9.578e-05,2]
[348864180,1736829032025,-299.99,9.6e-05,2]
[348864181,1736829032034,-25433.78,9.6e-05,2]
[348864182,1736829032043,-150.99,9.6e-05,2]
[348864183,1736829032053,-999.99,9.6e-05,2]
[348864184,1736829032063,-800.0,9.6e-05,3]
[348864185,1736829032072,-877.46,9.7e-05,2]
[348864186,1736829032082,-1100.0,9.7e-05,3]
[348864188,1736829032091,-1400.0,9.8e-05,3]
[348864190,1736829032101,-5000.0,9.896e-05,2]
[348864192,1736829032110,-200.0,9.9e-05,3]
[348864194,1736829032119,-1000.0,9.945e-05,2]
[348864195,1736829032129,-891.93654686,9.992e-05,2]
[348864196,1736829032138,-405.5136409,9.992e-05,2]
[348864198,1736829032148,-567.7645382,9.992e-05,2]
[348864199,1736829032157,-304.88015,9.992e-05,2]
[348864200,1736829032167,-244.1332973,9.992e-05,2]
[348864201,1736829032179,-410.1175802,9.993e-05,2]
[348864202,1736829032189,-574.2105691,9.993e-05,2]
[348864203,1736829032198,-304.88015,9.993e-05,2]
[348864205,1736829032207,-304.88015,9.993e-05,2]
[348864207,1736829032218,-244.1332973,9.993e-05,2]
[348864208,1736829032231,-244.1332973,9.993e-05,2]
[348864209,1736829032240,-500.0,9.994e-05,2]
[348864210,1736829032250,-500.0,9.994e-05,2]
[348864212,1736829032261,-500.0,9.994e-05,2]
[348864213,1736829032271,-500.0,9.994e-05,2]
[348864214,1736829032281,-500.0,9.994e-05,2]
[348864215,1736829032291,-500.0,9.994e-05,2]
[348864216,1736829032300,-500.0,9.994e-05,2]
[348864217,1736829032310,-500.0,9.994e-05,2]
[348864218,1736829032320,-500.0,9.994e-05,2]
[348864219,1736829032329,-613.61,9.994e-05,2]
[348864220,1736829032339,-500.0,9.994e-05,2]
[348864221,1736829032349,-500.0,9.994e-05,2]
[348864222,1736829032358,-819.77,9.994e-05,2]
[348864223,1736829032367,-500.0,9.994e-05,2]